bitfinex/quotes_ETHUSD_20260108
["timestamp","ask_amount","ask_price","bid_price","bid_amount"]
[1767885784152,1.82473198,3091.3,3089.8,3.59245236]
[1767885784347,1.82473198,3091.3,3089.9,0.0323635]
[1767885784348,0.97773198,3091.3,3089.9,0.0323635]
[1767885784536,0.97773198,3091.3,3089.4,0.08716426]
[1767885784537,0.847,3091.2,3090.0,3.23618962]
[1767885784743,6.4701886,3091.1,3089.4,0.08716426]
[1767885784943,6.4701886,3091.1,3089.5,6.89262352]
[1767885784944,0.64701886,3091.0,3089.5,6.89262352]
[1767885785176,0.64701886,3091.0,3089.5,6.86025583]
[1767885785472,0.64701886,3091.0,3089.6,0.03236664]
[1767885786550,3.23492759,3091.3,3089.6,1.05073378]
[1767885786749,0.847,3091.2,3089.8,0.08716426]
[1767885788151,0.847,3091.2,3089.7,7.43668988]
[1767885788356,1.75191332,3091.2,3089.7,3.23656018]
[1767885788578,0.90491332,3091.1,3089.6,7.01665656]
[1767885788794,0.90491332,3090.9,3089.6,7.75699386]
[1767885789300,0.90491332,3090.9,3089.5,0.38671643]
[1767885789496,0.90491332,3090.9,3089.6,0.03236664]
[1767885789697,6.47039792,3091.0,3089.6,6.47332014]
[1767885790000,0.90491332,3091.3,3089.6,6.47332014]
[1767885790001,3.23488499,3091.3,3089.9,0.08716426]
[1767885790496,3.23678799,3091.4,3090.1,0.08716426]
[1767885790700,0.73185451,3091.3,3090.1,0.11952567]
[1767885790874,0.002,3091.4,3090.2,9.7081095]
[1767885791075,6.47165886,3091.4,3090.2,3.2360365]
[1767885791275,3.23682943,3091.4,3090.2,3.2360365]
[1767885791496,6.47165886,3091.4,3090.2,3.2360365]
[1767885791898,7.37657218,3091.4,3090.1,3.2360889]
[1767885792101,0.90491332,3091.2,3089.8,3.23643717]
[1767885792279,1.75191332,3091.1,3089.7,3.78]
[1767885792598,1.75191332,3091.1,3089.7,3.23651443]
[1767885793009,0.002,3091.4,3090.2,0.96356952]
[1767885793173,0.002,3091.4,3090.1,3.68441815]
[1767885793174,0.002,3091.7,3090.9,0.08716426]
[1767885793502,0.002,3092.2,3091.5,0.08716426]
[1767885793703,0.002,3092.5,3091.8,0.08716426]
[1767885794006,0.847,3093.1,3092.0,0.08716426]
[1767885794180,0.90491332,3093.7,3091.8,0.93216426]
[1767885794380,0.90491332,3093.5,3092.1,0.08716426]
[1767885794581,1.08010465,3093.4,3091.8,0.93216426]
[1767885794929,0.90491332,3093.2,3091.6,3.23457109]
[1767885795425,0.90491332,3093.2,3091.3,0.08716426]
[1767885795426,0.90491332,3093.0,3091.3,0.08716426]
[1767885795590,1.75191332,3092.9,3091.5,6.46934224]
[1767885795773,0.90691332,3095.1,3092.5,0.08716426]
[1767885795977,0.90491332,3094.9,3093.0,3.59725389]
[1767885796287,6.46203554,3095.0,3093.1,0.47091957]
[1767885796288,0.90491332,3094.7,3093.1,0.47091957]
[1767885796616,0.90491332,3094.7,3092.6,0.845]
[1767885797118,7.36778412,3094.6,3092.7,6.46684126]
[1767885797303,7.36778412,3094.6,3092.7,13.29751578]
[1767885797506,0.90491332,3094.5,3092.7,6.46684126]
[1767885797818,0.90491332,3094.3,3092.2,0.845]
[1767885798016,0.90491332,3094.1,3092.6,3.23350629]
[1767885798918,0.90491332,3094.1,3092.6,6.46703147]
[1767885799220,3.23206205,3094.0,3092.4,3.59725389]
[1767885799405,0.32320621,3093.9,3092.5,1.10284516]
[1767885799614,0.08716426,3094.7,3092.5,1.10284516]
[1767885799615,1.06691332,3095.1,3092.6,1.05073378]
[1767885799914,0.90491332,3096.8,3094.7,0.08716426]
[1767885800086,0.847,3096.7,3095.4,0.08716426]
[1767885800409,0.847,3096.7,3095.8,0.08716426]
[1767885800613,0.847,3096.7,3095.6,0.08716426]
[1767885800936,0.847,3096.7,3095.1,0.93216426]
[1767885801224,0.847,3096.7,3095.0,3.39917621]
[1767885801225,6.4589052,3096.5,3095.0,3.39917621]
[1767885801387,0.64589052,3096.4,3095.0,3.39917621]
[1767885801589,0.64589052,3096.4,3095.0,0.16823308]
[1767885801789,4.50216721,3096.3,3095.0,0.16823308]
[1767885801986,4.50216721,3096.3,3094.1,0.08716426]
[1767885801987,0.90491332,3096.2,3094.1,0.08716426]
[1767885802190,4.50216721,3095.9,3094.1,0.08716426]
[1767885802387,0.45021672,3095.8,3094.1,0.08716426]
[1767885802627,1.35513004,3095.8,3093.9,0.93116426]
[1767885802920,0.90491332,3095.6,3093.5,0.08716426]
[1767885803217,1.75091332,3095.5,3093.7,0.08716426]
[1767885803424,6.46120048,3095.4,3093.8,3.23220467]
[1767885803626,9.69180072,3095.4,3093.8,3.23220467]
[1767885803848,12.92240096,3095.4,3093.7,0.08716426]
[1767885804000,0.002,3097.0,3096.2,0.08716426]
[1767885804200,0.846,3096.7,3096.6,0.08716426]
[1767885804400,0.90491332,3098.1,3096.8,0.08716426]
[1767885804707,0.849,3097.5,3097.1,0.08716426]
[1767885804908,0.849,3097.5,3096.8,0.08716426]
[1767885805226,7.30591044,3097.5,3096.8,0.08716426]
[1767885805409,6.45723694,3097.3,3096.4,0.03370828]
[1767885805614,6.45723694,3097.3,3096.5,0.08716426]
[1767885805809,6.45723694,3097.3,3096.3,0.08716426]
[1767885806437,9.68585541,3097.3,3096.1,0.08716426]
[1767885806805,9.68585541,3097.3,3095.8,0.08716426]
[1767885807009,1.04164465,3097.2,3096.0,0.08716426]
[1767885807429,0.90491332,3097.0,3095.6,0.08716426]
[1767885807709,0.846,3096.9,3095.6,0.08716426]
[1767885807942,1.75091332,3096.9,3095.3,0.08716426]
[1767885808150,0.17509133,3096.8,3095.8,0.08716426]
[1767885808330,0.846,3096.7,3096.0,0.08716426]
[1767885808712,0.846,3096.7,3096.2,0.08716426]
[1767885808910,0.846,3097.1,3096.4,0.08716426]
[1767885809414,0.846,3097.1,3096.0,3.31712697]
[1767885809415,3.22893122,3097.0,3096.0,0.08716426]
[1767885809736,0.73059104,3097.4,3095.8,0.08716426]
[1767885809737,3.22861847,3097.3,3096.3,0.08716426]
[1767885809941,0.846,3096.9,3096.3,0.08716426]
[1767885810139,0.846,3096.9,3096.1,0.08716426]
[1767885810342,0.846,3096.9,3096.0,0.08716426]
[1767885810541,0.002,3096.6,3096.0,0.08716426]
[1767885810940,0.002,3096.6,3095.7,3.86716426]
[1767885811709,0.64802795,3096.6,3095.7,3.86716426]
[1767885813448,0.64802795,3096.6,3095.9,0.08716426]
[1767885813643,3.2294526,3096.5,3095.9,0.08716426]
[1767885814724,0.845,3096.4,3095.9,0.08716426]
[1767885815032,0.92237775,3096.3,3095.5,3.78]
[1767885815222,0.92237775,3096.3,3094.1,0.93016426]
[1767885815223,0.92237775,3096.2,3094.1,0.08716426]
[1767885815416,16.147263,3096.5,3094.1,0.08716426]
[1767885815417,0.92237775,3096.0,3094.7,0.08716426]
[1767885815731,7.30515698,3095.9,3094.9,0.08716426]
[1767885816141,7.30515698,3095.9,3094.7,0.08716426]
[1767885816449,10.53523547,3095.9,3094.7,0.08716426]
[1767885816744,7.30515698,3095.9,3094.7,0.08716426]
[1767885816948,0.82275347,3095.8,3094.7,0.08716426]
[1767885817150,1.74513122,3095.8,3094.5,3.31868572]
[1767885817322,1.74513122,3095.8,3094.7,0.08716426]
[1767885817650,6.46057434,3095.7,3094.7,0.08716426]
[1767885817881,0.82275347,3095.8,3094.9,0.08716426]
[1767885818147,0.845,3095.8,3095.5,0.08716426]
[1767885818346,3.06945923,3096.8,3095.8,0.08716426]
[1767885818546,0.845,3096.7,3096.0,0.08716426]
[1767885818724,0.80679767,3096.7,3096.2,0.08716426]
[1767885818919,0.845,3096.6,3096.2,0.07483901]
[1767885819952,4.07437542,3096.6,3095.5,0.08716426]
[1767885820249,4.07437542,3096.6,3094.9,5.19327697]
[1767885820250,0.92237775,3096.5,3095.4,3.78]
[1767885820450,0.92237775,3096.4,3095.4,3.78]
[1767885820662,0.92237775,3096.4,3095.2,3.78]
[1767885820816,0.92237775,3096.4,3094.9,3.78]
[1767885821824,0.92237775,3096.2,3094.8,3.78]
[1767885822018,0.92237775,3096.0,3094.8,3.78]
[1767885822453,0.92237775,3096.0,3094.8,7.01119926]
[1767885822655,0.002,3098.2,3097.7,0.08716426]
[1767885822858,0.002,3098.2,3098.0,0.08716426]
[1767885823037,0.16821788,3098.8,3098.0,0.08716426]
[1767885823369,0.92237775,3098.7,3097.8,0.08716426]
[1767885823523,1.58265177,3098.6,3098.0,0.08716426]
[1767885823723,1.58265177,3098.6,3097.8,0.08716426]
[1767885823724,3.22736808,3098.5,3097.8,0.08716426]
[1767885824047,3.22736808,3098.5,3098.1,0.08716426]
[1767885824229,3.22736808,3098.5,3097.9,0.08716426]
[1767885824429,0.48100198,3098.4,3097.7,0.08716426]
[1767885824852,0.92237775,3099.3,3098.1,0.08716426]
[1767885825051,0.845,3099.1,3098.3,0.08716426]
[1767885825348,7.13764721,3099.1,3098.3,0.08716426]
[1767885825516,0.92237775,3099.0,3097.9,0.08716426]
[1767885825716,7.37669729,3098.7,3097.7,0.08716426]
[1767885826069,0.92237775,3098.6,3097.8,0.08716426]
[1767885826267,0.845,3098.5,3097.5,0.08716426]
[1767885826468,0.845,3098.5,3097.8,0.09683042]
[1767885826771,0.17673778,3098.4,3097.5,0.08716426]
[1767885826971,0.17673778,3098.4,3097.7,0.09683042]
[1767885827272,0.17673778,3098.4,3097.3,0.08716426]
[1767885827473,0.92237775,3098.4,3097.6,0.09683042]
[1767885827840,3.22757641,3098.3,3097.6,0.09683042]
[1767885828171,6.45515282,3098.3,3097.4,0.09683042]
[1767885828368,0.92237775,3098.2,3096.9,0.09683042]
[1767885828555,0.92237775,3098.0,3096.9,0.09683042]
[1767885828758,0.92237775,3097.8,3096.7,0.09683042]
[1767885828966,0.92237775,3097.8,3096.5,0.09683042]
[1767885829273,0.92237775,3097.6,3096.3,0.12912703]
[1767885829459,0.92237775,3097.6,3096.5,0.09683042]
[1767885829859,6.45682,3097.5,3096.5,0.09683042]
[1767885830087,1.76737775,3097.4,3096.5,0.09683042]
[1767885830268,1.76737775,3097.4,3096.3,0.09683042]
[1767885830448,0.82241978,3097.3,3096.5,0.09683042]
[1767885830769,0.82241978,3097.3,3096.3,0.09683042]
[1767885830984,0.92237775,3097.2,3096.3,0.09683042]
[1767885831272,0.92237775,3097.2,3096.1,0.09683042]
[1767885831474,0.92237775,3097.2,3096.3,0.09041737]
[1767885831773,0.17447975,3097.1,3096.3,0.09041737]
[1767885831977,3.40340903,3097.1,3096.3,0.09041737]
[1767885832554,0.17447975,3097.1,3096.4,0.03229556]
[1767885832868,0.17447975,3097.1,3096.5,0.09041737]
[1767885833054,0.845,3097.0,3096.5,0.09041737]
[1767885833256,0.845,3097.0,3096.6,0.03229348]
[1767885833465,3.22855978,3097.4,3096.7,0.09041737]
[1767885833668,3.22963979,3099.2,3098.1,0.09041737]
[1767885833882,0.845,3099.1,3098.5,0.09041737]
[1767885834083,4.07175401,3099.1,3098.4,0.09041737]
[1767885834271,4.07175401,3099.1,3098.1,0.09041737]
[1767885834472,0.4074754,3099.0,3098.3,0.09041737]
[1767885834672,7.29858288,3099.1,3098.3,0.09041737]
[1767885834873,7.29858288,3099.1,3098.1,0.09041737]
[1767885835067,7.29858288,3099.1,3097.9,0.09041737]
[1767885835408,4.07179144,3099.1,3098.1,0.09041737]
[1767885835560,0.845,3099.0,3098.1,3.31813603]
[1767885836090,0.845,3099.0,3098.3,0.09041737]
[1767885836892,0.845,3099.1,3098.9,0.09041737]
[1767885837105,1.01279512,3101.8,3099.2,0.41952256]
[1767885837261,0.92237775,3101.4,3100.0,0.16804625]
[1767885837460,0.92237775,3101.3,3100.0,0.16804625]
[1767885837700,1.01279512,3101.2,3100.0,0.16804625]
[1767885837868,0.92237775,3101.2,3100.0,0.16804625]
[1767885838193,0.92237775,3101.0,3099.0,3.39488868]
[1767885838407,0.92237775,3100.8,3099.0,0.50758887]
[1767885838574,0.92237775,3100.8,3099.0,3.39486464]
[1767885838775,0.92237775,3100.8,3099.1,3.22666454]
[1767885838959,0.85195585,3100.8,3099.0,0.1681]
[1767885839161,0.92237775,3100.5,3099.0,0.1681]
[1767885839361,0.92237775,3100.3,3099.0,0.1681]
[1767885839762,0.845,3100.2,3099.0,0.1681]
[1767885840103,3.22580645,3100.0,3099.0,0.1681]
[1767885840266,6.28340232,3100.0,3099.0,0.1681]
[1767885840466,0.17673778,3100.1,3099.0,3.39492734]
[1767885840691,6.45141107,3100.1,3099.0,0.1681]
[1767885840911,9.67711975,3100.1,3099.0,0.1681]
[1767885841446,6.45141107,3100.1,3099.0,0.1681]
[1767885841799,9.67711975,3100.1,3099.0,0.1681]
[1767885841995,6.45141107,3100.1,3099.0,0.1681]
[1767885842255,0.96770861,3100.0,3099.0,0.1681]
[1767885843149,0.96770861,3100.0,3099.0,3.22684737]
[1767885843301,9.67658682,3100.3,3098.5,0.98551782]
[1767885843500,9.67658682,3100.3,3098.5,3.22733442]
[1767885843932,9.67658682,3100.3,3098.6,3.22725304]
[1767885844238,0.90995152,3100.4,3098.4,3.22742367]
[1767885844441,0.90995152,3100.4,3098.5,0.02356906]
[1767885844735,1.38113543,3100.3,3098.5,1.79866833]
[1767885845436,2.35222705,3100.3,3098.5,1.80737295]
[1767885845637,2.35222705,3100.3,3098.5,1.77509927]
[1767885845840,2.35222705,3100.3,3098.5,0.03227368]
[1767885846013,9.67679502,3100.2,3098.6,3.22726392]
[1767885846212,9.67679502,3100.2,3098.7,0.03227159]
[1767885846610,0.845,3100.1,3098.7,0.03227159]
[1767885847019,1.81609162,3100.1,3098.6,0.03227263]
[1767885847219,1.81609162,3100.1,3098.2,5.04176394]
[1767885847220,2.02327112,3100.0,3098.2,5.04176394]
[1767885847426,1.0521795,3100.0,3098.2,0.0322768]
[1767885847649,1.0521795,3100.0,3098.2,1.02957217]
[1767885847848,1.0521795,3100.0,3098.5,3.22736808]
[1767885848150,6.45182102,3099.9,3098.7,3.22715977]
[1767885848439,9.67773153,3099.9,3098.3,3.78]
[1767885848752,2.04408272,3099.8,3097.7,3.31858933]
[1767885848982,2.04408272,3099.8,3098.3,3.22750614]
[1767885849120,2.04408272,3099.8,3098.4,0.03114198]
[1767885849301,1.0729911,3099.8,3097.8,0.99729537]
[1767885849501,1.0729911,3099.8,3098.1,3.22775596]
[1767885849721,4.07076703,3100.1,3098.0,0.99729537]
[1767885849722,3.22582103,3100.0,3098.6,6.45451556]
[1767885849934,3.22582103,3100.0,3098.7,0.03227159]
[1767885850133,3.22582103,3100.0,3098.8,6.45411126]
[1767885850457,4.07072307,3100.1,3098.9,0.03226951]
[1767885850662,3.22553576,3100.3,3098.9,0.03226951]
[1767885850841,0.32275358,3100.3,3099.0,0.97134364]
[1767885851535,7.2968601,3100.4,3099.7,0.09041737]
[1767885851536,0.002,3100.4,3099.7,0.09041737]
[1767885851848,0.97109162,3101.3,3099.9,0.09041737]
[1767885851849,7.29311646,3101.2,3099.9,0.09041737]
[1767885852068,0.002,3100.0,3099.7,0.09041737]
[1767885852208,11.32792704,3101.2,3099.7,3.31647894]
[1767885852416,0.16839269,3102.2,3099.9,1.08771274]
[1767885852696,0.97109162,3103.2,3101.5,0.09041737]
[1767885852872,1.81509162,3103.2,3101.6,0.09041737]
[1767885853027,0.18150916,3103.1,3101.3,0.09041737]
[1767885853350,0.18150916,3103.1,3101.4,0.09041737]
[1767885853351,1.15260078,3103.1,3101.4,0.09041737]
[1767885853567,1.15260078,3103.1,3101.6,0.09041737]
[1767885853741,1.15260078,3103.1,3101.5,0.09041737]
[1767885854332,7.28937544,3103.0,3101.6,0.09041737]
[1767885854535,0.84419762,3102.9,3101.8,0.09041737]
[1767885854946,0.84419762,3102.9,3101.7,0.09041737]
[1767885855143,0.84419762,3102.9,3101.4,3.31469915]
[1767885855346,0.84419762,3102.9,3101.6,0.09041737]
[1767885855569,0.97109162,3106.9,3104.2,0.09041737]
[1767885855856,0.97109162,3106.9,3103.6,0.99729537]
[1767885855857,0.97109162,3106.3,3104.3,0.09041737]
[1767885856009,0.97109162,3106.3,3103.7,0.09041737]
[1767885856211,0.844,3106.0,3103.9,12.88701308]
[1767885856412,3.30999238,3106.0,3103.9,9.66525981]
[1767885856729,0.09041737,3107.2,3103.9,9.66525981]
[1767885856730,3.21791736,3107.6,3105.3,0.09041737]
[1767885856925,0.844,3107.4,3105.4,0.21205586]
[1767885857107,0.844,3107.4,3105.0,0.93241737]
[1767885857108,0.97109162,3107.3,3105.0,0.93241737]
[1767885857308,0.97109162,3107.1,3104.4,0.93241737]
[1767885857537,0.97109162,3107.1,3105.0,0.09041737]
[1767885857837,1.06150899,3107.1,3104.5,0.09041737]
[1767885858239,9.65623791,3106.8,3104.4,3.22123437]
[1767885858447,1.81866553,3106.7,3104.5,0.33116517]
[1767885858662,1.81866553,3106.7,3103.8,0.41173209]
[1767885858663,0.09041737,3106.5,3103.8,0.41173209]
[1767885858967,0.09041737,3106.5,3103.9,3.22174399]
[1767885858968,1.06150899,3106.5,3103.9,3.22174399]
[1767885859107,0.97109162,3106.4,3103.5,0.09041737]
[1767885859312,0.97109162,3106.2,3103.5,0.09041737]
[1767885859542,0.97109162,3106.2,3103.8,3.22177706]
[1767885859742,0.97109162,3106.2,3103.6,0.09041737]
[1767885859946,0.97109162,3106.2,3103.5,0.5111912]
[1767885860274,0.97109162,3106.2,3103.8,0.09041737]
[1767885860414,13.0593946,3106.1,3103.8,0.09041737]
[1767885860759,0.97109162,3106.0,3103.4,0.09041737]
[1767885860922,0.97109162,3106.0,3103.6,0.09041737]
[1767885861267,0.843,3105.9,3103.9,0.09041737]
[1767885861567,0.18140916,3105.8,3103.4,0.09041737]
[1767885861756,0.18140916,3105.8,3103.3,3.22237054]
[1767885861757,0.97109162,3105.6,3102.9,0.16822543]
[1767885861965,0.843,3105.5,3103.7,0.09041737]
[1767885862449,9.66059121,3105.4,3103.7,3.31237232]
[1767885862659,12.88078828,3105.4,3103.1,0.09041737]
[1767885862815,12.88078828,3105.4,3102.9,0.09041737]
[1767885862816,17.07207697,3105.4,3102.9,0.09041737]
[1767885863022,0.97109162,3105.3,3102.9,3.31319201]
[1767885863259,0.97109162,3105.3,3102.9,0.09041737]
[1767885863460,1.7072077,3105.2,3103.0,0.33133002]
[1767885863730,0.843,3105.1,3104.1,0.09041737]
[1767885864138,6.44039414,3105.4,3104.1,0.09041737]
[1767885864442,4.06366215,3105.0,3104.1,0.09041737]
[1767885864647,0.40636622,3104.9,3103.9,0.09041737]
[1767885865246,0.40636622,3104.9,3103.7,0.09041737]
[1767885865966,1.37745784,3104.9,3103.0,3.55395205]
[1767885866164,1.37745784,3104.9,3103.0,0.33133002]
[1767885866355,6.44184622,3104.7,3103.0,0.33133002]
[1767885866555,6.44184622,3104.7,3103.1,0.09041737]
[1767885866728,0.843,3104.6,3103.1,0.09041737]
[1767885866925,3.22092311,3104.7,3103.3,0.09041737]
[1767885867148,0.843,3104.6,3103.6,0.09041737]
[1767885867564,1.57148462,3104.6,3103.2,0.09041737]
[1767885867928,1.57148462,3104.6,3103.3,0.09041737]
[1767885868221,3.22083706,3104.8,3103.5,0.09041737]
[1767885868517,3.22083706,3104.8,3103.6,3.25425974]
[1767885868794,0.843,3104.7,3103.2,3.22243955]
[1767885868967,0.843,3104.7,3103.3,0.09041737]
[1767885869162,0.72846741,3104.6,3103.3,0.09041737]
[1767885869380,0.72846741,3104.6,3103.4,3.22220789]
[1767885869574,0.72846741,3104.6,3103.3,0.09041737]
[1767885869982,0.72846741,3104.6,3102.8,0.09041737]
[1767885870203,0.72846741,3104.6,3102.8,3.31324985]
[1767885870414,9.66339183,3104.5,3102.9,3.65381259]
[1767885870581,9.66339183,3104.5,3102.8,0.09041737]
[1767885870789,9.66339183,3104.5,3102.9,3.22276196]
[1767885871005,9.66339183,3104.5,3102.8,3.2228336]
[1767885871336,0.97109162,3104.4,3101.8,0.09041737]
[1767885871626,0.97109162,3104.3,3102.6,3.22310057]
[1767885871800,0.97109162,3104.3,3102.7,0.12264736]
[1767885871969,1.04402775,3104.2,3102.9,3.22279158]
[1767885872492,7.43306379,3104.1,3102.5,6.44641418]
[1767885872688,7.43306379,3104.1,3102.2,3.31389929]
[1767885872689,0.98997241,3104.0,3102.3,3.2233506]
[1767885873004,0.843,3103.9,3102.4,6.44659407]
[1767885873497,1.83297241,3103.9,3102.4,6.44659407]
[1767885873700,0.18329724,3103.8,3102.4,6.44659407]
[1767885873864,2.01626965,3103.8,3102.4,3.22328309]
[1767885874070,3.42246966,3104.2,3102.7,0.09041737]
[1767885874271,0.843,3104.1,3102.7,0.09041737]
[1767885874502,3.22164948,3104.0,3102.7,3.22290075]
[1767885874705,6.44329896,3104.0,3102.2,0.09041737]
[1767885874911,0.7286299,3103.9,3102.7,6.44599864]
[1767885875202,0.843,3103.8,3102.8,0.03222894]
[1767885876006,0.843,3103.8,3102.7,6.44599864]
[1767885876306,0.843,3103.8,3102.8,0.03222895]
[1767885876502,0.843,3103.8,3102.7,6.44599864]
[1767885876678,0.843,3103.8,3102.8,0.03222895]
[1767885876875,0.843,3103.8,3102.6,0.09041737]
[1767885877106,0.843,3103.8,3102.7,0.03222999]
[1767885877414,0.843,3103.8,3102.8,0.97919073]
[1767885877577,0.843,3103.8,3102.6,6.53657412]
[1767885877773,0.843,3103.8,3102.6,3.31347092]
[1767885878093,0.843,3103.8,3102.6,3.22305355]
[1767885878292,0.843,3103.8,3102.7,0.26326972]
[1767885878594,0.843,3103.8,3102.7,0.03222999]
[1767885878785,0.843,3103.8,3102.7,3.25518242]
[1767885878981,0.843,3103.8,3102.7,3.22295243]
[1767885879193,0.843,3103.8,3102.8,0.26317957]
[1767885879496,0.843,3103.8,3102.9,0.23095062]
[1767885879696,0.843,3103.8,3103.1,0.001]
[1767885879891,4.21074336,3104.9,3103.1,0.001]
[1767885879892,0.98997241,3104.9,3103.1,0.001]
[1767885880098,4.21092644,3104.7,3103.1,0.001]
[1767885880297,2.13952893,3104.6,3103.2,0.2316386]
[1767885880498,2.13952893,3104.6,3103.1,0.001]
[1767885880692,0.98997241,3104.5,3103.2,0.23167594]
[1767885880904,10.65367552,3104.4,3103.1,0.001]
[1767885881208,0.98997241,3104.3,3103.1,0.001]
[1767885881511,1.90836755,3104.2,3103.2,0.23227952]
[1767885881689,1.90836755,3104.2,3103.3,0.23225409]
[1767885881889,1.90836755,3104.2,3102.8,0.03222895]
[1767885882089,1.90836755,3104.2,3102.9,0.23225937]
[1767885882393,0.98997243,3104.1,3103.0,0.26448624]
[1767885882596,0.98997243,3104.1,3103.1,0.23225937]
[1767885882914,0.98997243,3104.1,3103.3,6.44475236]
[1767885883075,0.98997243,3104.1,3103.4,0.23225937]
[1767885883279,7.43310831,3104.1,3101.9,1.00741939]
[1767885883480,0.82761083,3104.0,3102.4,3.22322909]
[1767885883707,0.82761083,3104.0,3102.1,1.00741939]
[1767885883708,0.82761083,3104.0,3102.2,0.91700202]
[1767885884901,9.66525981,3103.9,3102.3,3.22340649]
[1767885885101,9.66525981,3103.9,3102.1,3.22360019]
[1767885885301,9.66525981,3103.9,3102.2,3.22348804]
[1767885885508,2.03925949,3103.8,3102.2,6.8116687]
[1767885885838,2.03925949,3103.8,3101.7,1.00741939]
[1767885886117,2.03925949,3103.8,3102.1,3.22354649]
[1767885886290,2.03925949,3103.8,3102.2,6.44698199]
[1767885886493,0.98997241,3103.7,3102.3,0.03223414]
[1767885886702,1.14592319,3103.6,3101.8,0.03223934]
[1767885886881,6.44433702,3103.5,3102.0,0.91700202]
[1767885887296,9.66650553,3103.5,3101.7,3.22401393]
[1767885887514,9.66650553,3103.5,3101.8,3.2561532]
[1767885887717,1.08124287,3103.4,3101.8,3.67346872]
[1767885887920,1.08124287,3103.4,3101.8,6.8974032]
[1767885888215,1.08124287,3103.4,3101.9,0.91700202]
[1767885889024,1.14592319,3103.6,3102.1,0.91700202]
[1767885889190,3.22222435,3103.5,3102.1,0.91700202]
[1767885889787,0.843,3103.6,3102.1,0.91700202]
[1767885889993,0.843,3103.6,3102.5,0.91700202]
[1767885890420,0.843,3103.6,3102.1,0.09041737]
[1767885890623,4.06512624,3103.6,3102.2,0.9492372]
[1767885890796,7.6937651,3103.6,3102.2,0.9492372]
[1767885890995,7.6937651,3103.6,3102.3,6.44682976]
[1767885891198,7.6937651,3103.6,3102.4,0.0322331]
[1767885891525,7.6937651,3103.6,3102.3,3.22341488]
[1767885892130,10.91589134,3103.6,3102.2,4.14047104]
[1767885892332,1.09158913,3103.5,3102.2,0.73641856]
[1767885892542,1.09158913,3103.5,3102.4,0.001]
[1767885893224,12.88908936,3103.4,3102.4,0.001]
[1767885893625,0.98997241,3103.3,3101.2,3.22451743]
[1767885893825,0.98997241,3103.3,3101.1,1.00741939]
[1767885894163,0.98997241,3103.3,3101.1,4.23202961]
[1767885894422,0.98997241,3103.1,3101.2,0.74567195]
[1767885894722,1.83297241,3103.0,3101.2,3.97018231]
[1767885895022,0.843,3103.0,3101.4,1.00741939]
[1767885895212,9.66837474,3102.9,3101.5,3.25648216]
[1767885895822,9.66837474,3102.9,3101.5,0.03224246]
[1767885896022,9.66837474,3102.9,3101.4,4.23171908]
[1767885896023,10.31473665,3102.9,3101.6,0.42639615]
[1767885896196,13.53752823,3102.9,3101.4,0.91700202]
[1767885896403,10.31473665,3102.9,3101.3,3.22442595]
[1767885896621,10.31473665,3102.9,3101.4,3.22427756]
[1767885897020,10.31473665,3102.9,3101.4,3.25652106]
[1767885897419,6.44558316,3102.9,3101.5,1.00741939]
[1767885897622,6.44558316,3102.9,3101.6,0.94924344]
[1767885897808,6.44558316,3102.9,3101.7,1.00741939]
[1767885898216,6.44558316,3102.9,3101.7,0.91700202]
[1767885898931,9.66837474,3102.9,3101.7,0.91700202]
[1767885899728,7.49672063,3102.9,3101.7,0.91700202]
[1767885899937,7.49672063,3102.9,3101.8,0.03223933]
[1767885899938,6.44558316,3102.9,3101.8,0.03223933]
[1767885900307,6.44558316,3102.9,3101.7,0.91700202]
[1767885900633,0.843,3103.0,3102.0,0.91700202]
[1767885900834,9.66339183,3104.5,3102.8,0.91700202]
[1767885901033,1.80933918,3104.4,3102.9,0.09041737]
[1767885901345,3.22133814,3104.3,3103.0,6.44537544]
[1767885901671,5.03066483,3104.4,3103.1,1.06086718]
[1767885901672,4.06425187,3104.4,3103.1,1.06086718]
[1767885901937,7.28550374,3104.4,3103.1,1.06086718]
[1767885902234,10.50675561,3104.4,3103.1,0.05344779]
[1767885902453,7.28550374,3104.4,3103.2,0.32761355]
[1767885902653,4.06425187,3104.4,3103.2,1.2813951]
[1767885902798,0.843,3104.4,3103.3,0.95378155]
[1767885903003,6.44018676,3105.5,3103.5,0.95378155]
[1767885903251,3.22030077,3105.3,3104.1,6.44309138]
[1767885903406,6.44060154,3105.3,3104.1,4.17532724]
[1767885903603,3.22030077,3105.3,3104.1,4.17532724]
[1767885903840,3.22030077,3105.3,3104.1,7.39687293]
[1767885904011,6.44060154,3105.3,3104.1,4.17532724]
[1767885904338,0.843,3105.4,3104.3,0.95378155]
[1767885904840,4.06322276,3105.4,3104.3,0.95378155]
[1767885905050,0.843,3105.4,3104.5,0.94055372]
[1767885905352,1.7600289,3105.6,3104.6,6.44205372]
[1767885905549,0.002,3105.8,3104.9,0.94055372]
[1767885905714,0.002,3105.8,3105.0,0.45104039]
[1767885905919,0.79725934,3106.1,3104.9,0.94055372]
[1767885906143,0.93668481,3107.3,3104.9,0.94055372]
[1767885906144,3.05563759,3107.1,3104.9,0.94055372]
[1767885906345,0.843,3107.0,3105.2,0.09041737]
[1767885907046,0.843,3107.0,3105.0,1.03097109]
[1767885907358,6.43728474,3106.9,3105.1,6.44101638]
[1767885907676,0.72802847,3106.8,3105.2,0.73815701]
[1767885908172,3.21843243,3107.2,3105.3,1.03097109]
[1767885908317,0.843,3107.1,3105.5,4.60082125]
[1767885908516,0.843,3107.1,3105.5,5.44182125]
[1767885909186,0.843,3107.1,3105.5,1.03097109]
[1767885909453,3.21864237,3106.9,3105.7,0.94055372]
[1767885909653,7.28028474,3106.9,3105.6,6.78983985]
[1767885909950,7.28028474,3106.9,3105.5,6.44018117]
[1767885910151,7.28028474,3106.9,3105.2,4.89911159]
[1767885910351,7.28028474,3106.9,3105.4,3.22012079]
[1767885910557,0.72802847,3106.8,3105.4,0.39582778]
[1767885910869,0.72802847,3106.8,3104.2,1.68025021]
[1767885910870,1.02710218,3106.7,3104.2,1.68025021]
[1767885911020,1.02710218,3106.7,3104.2,0.73969649]
[1767885911021,0.93668481,3106.4,3104.2,0.73969649]
[1767885911226,9.65872503,3106.0,3103.9,7.63251763]
[1767885911534,9.65872503,3106.0,3104.0,3.22164948]
[1767885911535,12.87830004,3106.0,3104.0,3.22164948]
[1767885911725,0.93668481,3105.9,3103.9,3.22174616]
[1767885911920,0.93668481,3105.9,3103.9,3.22172171]
[1767885912133,0.93668481,3105.7,3103.8,3.22182569]
[1767885912320,0.93668481,3105.5,3103.9,6.76566138]
[1767885912636,0.93668481,3105.5,3103.9,3.54390811]
[1767885913060,0.93668481,3105.5,3103.9,0.32218257]
[1767885913245,0.93668481,3105.3,3103.1,0.05344779]
[1767885913444,0.93668481,3105.1,3103.1,0.05344779]
[1767885913665,0.93668481,3105.1,3103.2,3.25467712]